[Event "Chess Festival Groningen 2023 | A"]
[Site "Groningen, Netherlands"]
[Date "2023.12.29"]
[Round "8.13"]
[White "Krasenkow, Michal"]
[Black "Elgersma, Onno"]
[Result "1/2-1/2"]
[TimeControl "90min/40moves + 30min + 30sec/move"]
[WhiteElo "2532"]
[BlackElo "2310"]

1. d4 {[%clk 01:30:58]} {[%emt 00:00:31]} Nf6 {[%clk 01:30:52]} 2. c4 {[%clk
01:31:25]} e6 {[%clk 01:31:13]} 3. Nc3 {[%clk 01:31:52]} d5 {[%clk 01:31:32]} 4.
cxd5 {[%clk 01:32:17]} exd5 {[%clk 01:31:58]} 5. Bg5 {[%clk 01:32:41]} c6
{[%clk 01:32:24]} 6. e3 {[%clk 01:33:07]} h6 {[%clk 01:32:42]} 7. Bh4 {[%clk
01:32:50]} Be7 {[%clk 01:33:03]} 8. Bd3 {[%clk 01:33:16]} O-O {[%clk 01:33:23]}
9. Nge2 {[%clk 01:33:44]} Re8 {[%clk 01:33:35]} 10. Qc2 {[%clk 01:33:40]} Nbd7
{[%clk 01:33:49]} 11. O-O {[%clk 01:33:31]} a5 {[%clk 01:33:50]} 12. f3 {[%clk
01:33:27]} b5 {[%clk 01:31:38]} 13. Rae1 {[%clk 01:30:42]} Ba6 {[%clk
01:27:22]} 14. Bf2 {[%clk 01:17:56]} Qb6 {[%clk 01:18:51]} 15. Bf5 {[%clk
01:16:13]} Qb7 {[%clk 00:48:40]} 16. e4 {[%clk 01:15:29]} b4 {[%clk 00:47:50]}
17. Na4 {[%clk 01:15:38]} dxe4 {[%clk 00:45:43]} 18. fxe4 {[%clk 01:15:58]} Nf8
{[%clk 00:43:34]} 19. e5 {[%clk 00:55:43]} Nd5 {[%clk 00:43:40]} 20. Bd3 {[%clk
00:55:53]} Bxd3 {[%clk 00:39:40]} 21. Qxd3 {[%clk 00:55:29]} Qb5 {[%clk
00:39:54]} 22. Qc2 {[%clk 00:49:41]} Ne6 {[%clk 00:39:25]} 23. b3 {[%clk
00:49:13]} Rad8 {[%clk 00:34:47]} 24. Ng3 {[%clk 00:45:37]} Ndf4 {[%clk
00:22:11]} 25. Rd1 {[%clk 00:38:09]} Bg5 {[%clk 00:14:53]} 26. Rfe1 {[%clk
00:31:35]} c5 {[%clk 00:03:40]} 27. Nxc5 {[%clk 00:29:27]} Nxc5 {[%clk
00:04:06]} 28. Qxc5 {[%clk 00:28:45]} Qb7 {[%clk 00:04:25]} 29. d5 {[%clk
00:23:07]} Nxd5 {[%clk 00:04:22]} {[%emt 00:00:02]} 30. Ne4 {[%clk 00:10:44]}
{[%emt 00:12:52]} Nf4 {[%clk 00:04:32]} {[%emt 00:00:20]} 31. Rxd8 {[%clk
00:10:06]} {[%emt 00:01:08]} Rxd8 {[%clk 00:04:34]} {[%emt 00:00:28]} 32. Qb6
{[%clk 00:09:47]} {[%emt 00:00:49]} Ne2+ {[%clk 00:03:19]} {[%emt 00:01:45]} 33.
Kf1 {[%clk 00:09:30]} {[%emt 00:00:47]} Qxe4 {[%clk 00:03:41]} {[%emt
00:00:08]} 34. Rxe2 {[%clk 00:09:47]} {[%emt 00:00:13]} Rd1+ {[%clk 00:03:53]}
{[%emt 00:00:17]} 35. Be1 {[%clk 00:10:03]} {[%emt 00:00:14]} Qd3 {[%clk
00:02:11]} {[%emt 00:02:12]} 36. Qxa5 {[%clk 00:08:09]} {[%emt 00:02:24]} Qf5+
{[%clk 00:01:36]} {[%emt 00:01:04]} 37. Kg1 {[%clk 00:05:11]} {[%emt 00:03:28]}
Bd2 {[%clk 00:01:30]} {[%emt 00:00:36]} 38. Qd8+ {[%clk 00:04:49]} {[%emt
00:00:52]} Kh7 {[%clk 00:01:59]} {[%emt 00:00:02]} 39. Qxd2 {[%clk 00:04:27]}
{[%emt 00:00:52]} Rxd2 {[%clk 00:02:24]} {[%emt 00:00:05]} 40. Bxd2 {[%clk
00:04:52]} {[%emt 00:00:05]} Qc2 {[%clk 00:01:41]} {[%emt 00:01:14]} 41. Kf2
{[%clk 00:03:42]} {[%emt 00:01:40]} Qxa2 {[%clk 00:01:54]} {[%emt 00:00:18]} 42.
Bxb4 {[%clk 00:04:07]} {[%emt 00:00:05]} Qxb3 {[%clk 00:01:59]} {[%emt
00:00:24]} 43. Be1 {[%clk 00:04:21]} {[%emt 00:00:16]} Kg6 {[%clk 00:01:43]}
{[%emt 00:00:46]} 44. h3 {[%clk 00:04:15]} {[%emt 00:00:37]} Kf5 {[%clk
00:30:01]} {[%emt 00:02:12]} 45. Kf1 {[%clk 00:33:30]} {[%emt 00:01:15]} Qd3
{[%clk 00:29:24]} {[%emt 00:01:08]} 46. Kf2 {[%clk 00:33:51]} {[%emt 00:00:09]}
h5 {[%clk 00:27:39]} {[%emt 00:02:14]} 47. Kf1 {[%clk 00:31:49]} {[%emt
00:02:32]} g5 {[%clk 00:26:30]} {[%emt 00:01:39]} 48. Kf2 {[%clk 00:30:54]}
{[%emt 00:01:25]} g4 {[%clk 00:20:48]} {[%emt 00:06:12]} 49. hxg4+ {[%clk
00:31:17]} {[%emt 00:00:07]} hxg4 {[%clk 00:21:12]} {[%emt 00:00:06]} 50. Re3
{[%clk 00:31:27]} {[%emt 00:00:19]} Qc2+ {[%clk 00:20:55]} {[%emt 00:00:48]} 51.
Kf1 {[%clk 00:25:05]} {[%emt 00:06:51]} Qc4+ {[%clk 00:20:19]} {[%emt
00:01:06]} 52. Kf2 {[%clk 00:24:29]} {[%emt 00:01:06]} Qf4+ {[%clk 00:19:03]}
{[%emt 00:01:47]} 53. Ke2 {[%clk 00:24:53]} {[%emt 00:00:06]} Qh2 {[%clk
00:17:50]} {[%emt 00:01:42]} 54. Kf2 {[%clk 00:24:40]} {[%emt 00:00:42]} Ke6
{[%clk 00:17:44]} {[%emt 00:00:37]} 55. Re4 {[%clk 00:23:38]} {[%emt 00:01:32]}
Kf5 {[%clk 00:13:55]} {[%emt 00:04:19]} 56. Rb4 {[%clk 00:23:08]} {[%emt
00:01:01]} Kg5 {[%clk 00:06:43]} {[%emt 00:07:42]} 57. Bd2+ {[%clk 00:23:11]}
{[%emt 00:00:26]} Kf5 {[%clk 00:06:27]} {[%emt 00:00:46]} 58. Be1 {[%clk
00:22:23]} {[%emt 00:01:19]} Qh4+ {[%clk 00:04:28]} {[%emt 00:02:28]} 59. g3
{[%clk 00:21:43]} {[%emt 00:01:10]} Qh2+ {[%clk 00:04:54]} {[%emt 00:00:04]} 60.
Kf1 {[%clk 00:22:12]} {[%emt 00:00:02]} Kxe5 {[%clk 00:05:14]} {[%emt
00:00:11]} 61. Rf4 {[%clk 00:22:29]} {[%emt 00:00:12]} f5 {[%clk 00:05:34]}
{[%emt 00:00:10]} 62. Bc3+ {[%clk 00:22:42]} {[%emt 00:00:17]} Ke6 {[%clk
00:06:00]} {[%emt 00:00:03]} 63. Be1 {[%clk 00:23:07]} {[%emt 00:00:04]} Qh1+
{[%clk 00:06:07]} {[%emt 00:00:23]} 64. Kf2 {[%clk 00:23:33]} {[%emt 00:00:04]}
Qd5 {[%clk 00:06:07]} {[%emt 00:00:29]} 65. Kg1 {[%clk 00:22:37]} {[%emt
00:01:25]} Qd3 {[%clk 00:06:30]} {[%emt 00:00:12]} 66. Bf2 {[%clk 00:20:59]}
{[%emt 00:02:05]} Kd5 {[%clk 00:06:45]} {[%emt 00:00:15]} 67. Kg2 {[%clk
00:21:18]} {[%emt 00:00:11]} Ke5 {[%clk 00:06:54]} {[%emt 00:00:23]} 68. Kg1
{[%clk 00:20:58]} {[%emt 00:00:47]} Qb1+ {[%clk 00:04:10]} {[%emt 00:03:19]} 69.
Kg2 {[%clk 00:21:20]} {[%emt 00:00:04]} Qd1 {[%clk 00:04:14]} {[%emt 00:00:26]}
70. Kh2 {[%clk 00:21:00]} {[%emt 00:00:51]} Ke6 {[%clk 00:03:53]} {[%emt
00:00:51]} 71. Kg2 {[%clk 00:21:20]} {[%emt 00:00:10]} Qb1 {[%clk 00:04:00]}
{[%emt 00:00:23]} 72. Rd4 {[%clk 00:21:37]} {[%emt 00:00:13]} Qb7+ {[%clk
00:02:58]} {[%emt 00:01:31]} 73. Kg1 {[%clk 00:21:54]} {[%emt 00:00:12]} Kf7
{[%clk 00:02:44]} {[%emt 00:00:44]} 74. Rf4 {[%clk 00:22:07]} {[%emt 00:00:17]}
Kg6 {[%clk 00:03:08]} {[%emt 00:00:07]} 75. Rd4 {[%clk 00:22:31]} {[%emt
00:00:06]} Qf3 {[%clk 00:02:58]} {[%emt 00:00:41]} 76. Rf4 {[%clk 00:22:30]}
{[%emt 00:00:30]} Qd1+ {[%clk 00:03:14]} {[%emt 00:00:14]} 77. Kg2 {[%clk
00:22:48]} {[%emt 00:00:13]} Kf6 {[%clk 00:03:32]} {[%emt 00:00:12]} 78. Bd4+
{[%clk 00:23:04]} {[%emt 00:00:14]} Ke6 {[%clk 00:03:54]} {[%emt 00:00:07]} 79.
Bf2 {[%clk 00:23:04]} {[%emt 00:00:30]} Ke5 {[%clk 00:04:13]} {[%emt 00:00:11]}
80. Kh2 {[%clk 00:23:25]} {[%emt 00:00:09]} 1/2-1/2

[Event "Chess Festival Groningen 2023 | A"]
[Site "Groningen, Netherlands"]
[Date "2023.12.29"]
[Round "8.14"]
[White "Smeets, Kobe"]
[Black "Sanket, Chakravarty"]
[Result "0-1"]
[TimeControl "90min/40moves + 30min + 30sec/move"]
[BlackFideId "25032038"]
[WhiteElo "2239"]
[BlackElo "2361"]

1. e4 {[%clk 01:30:57]} {[%emt 00:02:12]} c5 {[%clk 01:19:47]} 2. Nf3 {[%clk
01:31:20]} e6 {[%clk 01:20:06]} 3. d4 {[%clk 01:31:45]} cxd4 {[%clk 01:20:28]}
4. Nxd4 {[%clk 01:32:10]} Nf6 {[%clk 01:20:49]} 5. Nc3 {[%clk 01:32:35]} Nc6
{[%clk 01:21:05]} 6. Qd3 {[%clk 01:32:58]} Be7 {[%clk 01:15:07]} 7. Nxc6 {[%clk
01:32:52]} bxc6 {[%clk 01:15:06]} 8. e5 {[%clk 01:33:05]} Nd5 {[%clk 01:14:36]}
9. Qg3 {[%clk 01:33:07]} Kf8 {[%clk 01:02:43]} 10. Bd2 {[%clk 01:28:42]} Rb8
{[%clk 01:00:19]} 11. b3 {[%clk 01:19:11]} h5 {[%clk 00:57:36]} 12. h4 {[%clk
01:16:09]} Bb4 {[%clk 00:46:15]} 13. O-O-O {[%clk 01:10:33]} Qa5 {[%clk
00:44:28]} 14. Nxd5 {[%clk 01:09:24]} Bxd2+ {[%clk 00:42:39]} 15. Rxd2 {[%clk
01:09:52]} cxd5 {[%clk 00:42:44]} 16. Qg5 {[%clk 01:04:18]} Rh6 {[%clk
00:40:22]} 17. Kb2 {[%clk 00:54:32]} Rg6 {[%clk 00:37:51]} 18. Qe3 {[%clk
00:54:56]} Rg4 19. f4 {[%clk 00:51:15]} Qb6 {[%clk 00:29:02]} 20. Qxb6 {[%clk
00:23:00]} Rxb6 {[%clk 00:28:54]} 21. Rf2 {[%clk 00:23:22]} Ba6 {[%clk
00:27:19]} 22. Bxa6 {[%clk 00:22:37]} Rxa6 {[%clk 00:27:46]} 23. Rh3 {[%clk
00:22:42]} Ke7 {[%clk 00:27:24]} 24. g3 {[%clk 00:22:11]} f6 {[%clk 00:26:18]}
25. Rf3 {[%clk 00:17:53]} fxe5 {[%clk 00:24:08]} 26. fxe5 {[%clk 00:18:21]} Re4
{[%clk 00:24:22]} 27. Rh2 {[%clk 00:18:48]} Rxe5 {[%clk 00:24:40]} 28. Rhf2
{[%clk 00:19:15]} Kd6 {[%clk 00:24:50]} 29. Rf7 {[%clk 00:19:36]} g5 {[%clk
00:25:00]} 30. hxg5 {[%clk 00:14:52]} Rxg5 {[%clk 00:24:55]} 31. Rh7 {[%clk
00:15:17]} Rc6 {[%clk 00:24:14]} 32. Rh2 {[%clk 00:14:22]} Rc8 {[%clk
00:20:30]} 33. R2xh5 {[%clk 00:13:16]} Rxh5 {[%clk 00:20:41]} 34. Rxh5 {[%clk
00:13:37]} Rg8 {[%clk 00:21:06]} 35. Rh4 {[%clk 00:10:28]} {[%emt 00:01:25]}
Rxg3 {[%clk 00:21:22]} {[%emt 00:00:14]} 36. Ra4 {[%clk 00:10:52]} {[%emt
00:00:06]} e5 {[%clk 00:21:37]} {[%emt 00:00:16]} 37. Ra6+ {[%clk 00:09:39]}
{[%emt 00:01:43]} Ke7 {[%clk 00:20:37]} {[%emt 00:01:29]} 38. Rxa7 {[%clk
00:09:56]} {[%emt 00:00:15]} e4 {[%clk 00:20:57]} {[%emt 00:00:09]} 39. Kc1
{[%clk 00:09:09]} {[%emt 00:01:17]} e3 {[%clk 00:18:58]} {[%emt 00:02:29]} 40.
Kd1 {[%clk 00:08:49]} {[%emt 00:00:50]} d4 {[%clk 00:18:32]} {[%emt 00:00:55]}
41. Ra4 {[%clk 00:18:42]} {[%emt 00:20:38]} Rg1+ {[%clk 00:48:03]} {[%emt
00:00:59]} 42. Ke2 {[%clk 00:19:01]} {[%emt 00:00:11]} Rg2+ {[%clk 00:48:27]}
{[%emt 00:00:06]} 43. Ke1 {[%clk 00:17:20]} {[%emt 00:02:10]} Rg4 {[%clk
00:46:11]} {[%emt 00:02:46]} 44. c3 {[%clk 00:02:07]} {[%emt 00:15:44]} Rg1+
{[%clk 00:46:04]} {[%emt 00:00:36]} 45. Ke2 {[%clk 00:02:35]} {[%emt 00:00:02]}
Rg2+ {[%clk 00:46:19]} {[%emt 00:00:14]} 46. Ke1 {[%clk 00:01:03]} {[%emt
00:02:03]} dxc3 {[%clk 00:46:29]} {[%emt 00:00:19]} 47. Rc4 {[%clk 00:01:23]}
{[%emt 00:00:10]} c2 {[%clk 00:46:43]} {[%emt 00:00:16]} 0-1

[Event "Chess Festival Groningen 2023 | A"]
[Site "Groningen, Netherlands"]
[Date "2023.12.29"]
[Round "8.15"]
[White "Van Foreest, Machteld"]
[Black "Van Rootselaar, Rik"]
[Result "1-0"]
[TimeControl "90min/40moves + 30min + 30sec/move"]
[WhiteElo "2344"]
[BlackElo "2105"]

1. e4 {[%clk 01:30:43]} {[%emt 00:02:50]} c5 {[%clk 01:30:18]} 2. Nf3 {[%clk
01:31:09]} d6 {[%clk 01:30:01]} 3. d4 {[%clk 01:31:35]} cxd4 {[%clk 01:30:27]}
4. Nxd4 {[%clk 01:32:00]} Nf6 {[%clk 01:30:46]} 5. Nc3 {[%clk 01:32:27]} Nc6
{[%clk 01:30:13]} 6. Bc4 {[%clk 01:32:43]} Qb6 {[%clk 01:28:20]} 7. Nb3 {[%clk
01:33:09]} e6 {[%clk 01:27:01]} 8. Bf4 {[%clk 01:33:33]} Ne5 {[%clk 01:26:40]}
9. Be2 {[%clk 01:33:55]} Bd7 {[%clk 01:24:52]} 10. Qd2 {[%clk 01:33:10]} Be7
{[%clk 01:23:27]} 11. f3 {[%clk 01:25:58]} a6 {[%clk 01:19:51]} 12. g4 {[%clk
01:21:37]} Qc7 {[%clk 01:17:20]} 13. a4 {[%clk 01:04:25]} O-O {[%clk 01:13:00]}
14. O-O-O {[%clk 00:53:34]} Rfd8 {[%clk 01:11:13]} 15. a5 {[%clk 00:52:45]}
Rac8 {[%clk 00:58:23]} 16. h4 {[%clk 00:41:42]} Nc6 {[%clk 00:50:35]} 17. Kb1
{[%clk 00:29:57]} e5 {[%clk 00:46:18]} 18. Be3 {[%clk 00:28:53]} Qb8 {[%clk
00:40:14]} 19. h5 {[%clk 00:28:33]} Nb4 {[%clk 00:36:55]} 20. g5 {[%clk
00:28:08]} Ne8 {[%clk 00:36:52]} 21. Bb6 {[%clk 00:26:38]} Nc7 {[%clk
00:35:36]} 22. g6 {[%clk 00:26:57]} Be6 {[%clk 00:35:23]} 23. h6 {[%clk
00:24:36]} hxg6 {[%clk 00:31:42]} 24. hxg7 {[%clk 00:24:47]} g5 {[%clk
00:32:00]} 25. Rh5 {[%clk 00:23:58]} Kxg7 {[%clk 00:30:14]} 26. Rdh1 {[%clk
00:24:20]} Rg8 {[%clk 00:30:28]} 27. Be3 {[%clk 00:13:38]} f6 {[%clk 00:29:14]}
28. Rh7+ {[%clk 00:12:27]} Kf8 {[%clk 00:29:39]} 29. Na4 {[%clk 00:11:04]} d5
{[%clk 00:23:05]} 30. Bc5 {[%clk 00:09:53]} Nc6 {[%clk 00:22:30]} 31. Nb6
{[%emt 00:00:03]} d4 {[%clk 00:17:27]} {[%emt 00:02:39]} 32. Bxe7+ {[%clk
00:09:10]} {[%emt 00:00:40]} Nxe7 {[%clk 00:17:51]} {[%emt 00:00:06]} 33. Qb4
{[%clk 00:09:35]} {[%emt 00:00:05]} Re8 {[%clk 00:17:31]} {[%emt 00:00:50]} 34.
Nc5 {[%clk 00:09:41]} {[%emt 00:00:24]} Qd8 {[%clk 00:15:54]} {[%emt 00:02:07]}
35. Bc4 {[%clk 00:10:05]} {[%emt 00:00:06]} Bxc4 {[%clk 00:13:51]} {[%emt
00:02:34]} 36. Nbd7+ {[%clk 00:10:29]} {[%emt 00:00:06]} Qxd7 {[%clk 00:14:17]}
{[%emt 00:00:04]} 37. Nxd7# {[%clk 00:10:55]} {[%emt 00:00:03]} 1-0

[Event "Chess Festival Groningen 2023 | A"]
[Site "Groningen, Netherlands"]
[Date "2023.12.29"]
[Round "8.16"]
[White "Kollen, Zyon"]
[Black "Albers, Sasa"]
[Result "1-0"]
[TimeControl "90min/40moves + 30min + 30sec/move"]
[WhiteElo "2318"]
[BlackElo "2192"]

1. e4 {[%clk 01:30:56]} {[%emt 00:00:04]} c6 {[%clk 01:30:56]} {[%emt
00:00:04]} 2. d4 {[%clk 01:31:18]} {[%emt 00:00:08]} d5 {[%clk 01:31:22]}
{[%emt 00:00:04]} 3. e5 {[%clk 01:31:39]} {[%emt 00:00:09]} c5 {[%clk
01:31:49]} {[%emt 00:00:04]} 4. dxc5 {[%clk 01:32:00]} {[%emt 00:00:09]} e6
{[%clk 01:32:14]} {[%emt 00:00:04]} 5. Qg4 {[%clk 01:31:41]} {[%emt 00:00:49]}
Nd7 {[%clk 01:21:51]} {[%emt 00:10:53]} 6. Nf3 {[%clk 01:30:55]} {[%emt
00:01:16]} Qc7 {[%clk 01:19:09]} {[%emt 00:03:11]} 7. Bb5 {[%clk 01:26:27]}
{[%emt 00:04:58]} h5 {[%clk 01:15:37]} {[%emt 00:04:02]} 8. Qg5 {[%clk
01:11:14]} {[%emt 00:15:42]} g6 {[%clk 01:12:28]} {[%emt 00:03:40]} 9. Nc3
{[%clk 00:53:37]} {[%emt 00:18:08]} a6 {[%clk 01:09:14]} {[%emt 00:03:45]} 10.
Bxd7+ {[%clk 00:39:24]} {[%emt 00:14:43]} Bxd7 {[%clk 01:09:37]} {[%emt
00:00:06]} 11. Be3 {[%clk 00:39:39]} {[%emt 00:00:15]} Nh6 {[%clk 01:05:45]}
{[%emt 00:04:21]} 12. Qf6 {[%clk 00:33:23]} {[%emt 00:06:46]} Rg8 {[%clk
01:02:49]} {[%emt 00:03:27]} 13. Bxh6 {[%clk 00:31:34]} {[%emt 00:02:18]} Bxh6
{[%clk 01:03:16]} {[%emt 00:00:02]} 14. Ng5 {[%clk 00:20:58]} {[%emt 00:11:08]}
Bc6 {[%clk 00:59:16]} {[%emt 00:04:30]} 15. O-O {[%clk 00:16:11]} {[%emt
00:05:17]} Bg7 {[%clk 00:53:43]} {[%emt 00:06:03]} 16. Nxe6 {[%clk 00:15:49]}
{[%emt 00:00:52]} fxe6 {[%clk 00:54:11]} 17. Qxe6+ {[%clk 00:16:10]} {[%emt
00:00:10]} Kf8 {[%clk 00:54:35]} {[%emt 00:00:06]} 18. f4 {[%clk 00:15:17]}
{[%emt 00:01:23]} Qf7 {[%clk 00:37:18]} {[%emt 00:17:47]} 19. Qd6+ {[%clk
00:04:49]} {[%emt 00:10:58]} Ke8 {[%clk 00:33:45]} {[%emt 00:04:03]} 20. Rad1
{[%clk 00:04:34]} {[%emt 00:00:45]} Rd8 {[%clk 00:33:55]} {[%emt 00:00:20]} 21.
Ne4 {[%clk 00:04:49]} {[%emt 00:00:15]} Bh8 {[%clk 00:15:23]} {[%emt 00:19:03]}
22. Rfe1 {[%clk 00:03:22]} {[%emt 00:01:56]} Rxd6 {[%clk 00:11:34]} {[%emt
00:04:19]} 23. Nxd6+ {[%clk 00:03:47]} {[%emt 00:00:06]} Ke7 {[%clk 00:11:55]}
{[%emt 00:00:09]} 24. Nxf7 {[%clk 00:04:12]} {[%emt 00:00:05]} Kxf7 {[%clk
00:12:20]} {[%emt 00:00:05]} 25. Kf2 {[%clk 00:04:07]} {[%emt 00:00:35]} Ke6
{[%clk 00:12:23]} {[%emt 00:00:28]} 26. g3 {[%clk 00:01:56]} {[%emt 00:02:40]}
Bg7 {[%clk 00:11:57]} {[%emt 00:00:55]} 27. Ke3 {[%clk 00:01:18]} {[%emt
00:01:08]} g5 {[%clk 00:05:06]} {[%emt 00:07:22]} 28. c4 {[%clk 00:01:45]}
{[%emt 00:00:03]} Rf8 {[%clk 00:03:10]} {[%emt 00:02:26]} 29. Rg1 {[%clk
00:00:46]} {[%emt 00:01:28]} Bh6 {[%clk 00:02:53]} {[%emt 00:00:48]} 30. Rd4
{[%clk 00:00:55]} {[%emt 00:00:21]} Rf5 {[%clk 00:03:04]} {[%emt 00:00:19]} 31.
h4 {[%clk 00:00:56]} {[%emt 00:00:29]} gxf4+ {[%clk 00:02:28]} {[%emt
00:01:06]} 32. gxf4 {[%clk 00:01:25]} {[%emt 00:00:01]} Rxe5+ {[%clk 00:02:22]}
{[%emt 00:00:36]} 33. Kf2 {[%clk 00:01:40]} {[%emt 00:00:14]} Bf8 {[%clk
00:02:01]} {[%emt 00:00:52]} 34. fxe5 {[%clk 00:01:52]} {[%emt 00:00:18]} Bxc5
{[%clk 00:02:29]} {[%emt 00:00:01]} 35. cxd5+ {[%clk 00:01:56]} {[%emt
00:00:26]} Bxd5 {[%clk 00:02:46]} {[%emt 00:00:13]} 36. Ke3 {[%clk 00:02:09]}
{[%emt 00:00:18]} Bf3 {[%clk 00:01:47]} {[%emt 00:01:29]} 37. Rg6+ {[%clk
00:02:17]} {[%emt 00:00:21]} Ke7 {[%clk 00:01:42]} {[%emt 00:00:36]} 38. Kxf3
{[%clk 00:02:33]} {[%emt 00:00:14]} Bxd4 {[%clk 00:02:05]} {[%emt 00:00:07]} 39.
Ke4 {[%clk 00:02:55]} {[%emt 00:00:08]} 1-0

[Event "Chess Festival Groningen 2023 | A"]
[Site "Groningen, Netherlands"]
[Date "2023.12.29"]
[Round "8.17"]
[White "Kanyamarala, Tarun"]
[Black "Francs, Marats"]
[Result "1-0"]
[TimeControl "90min/40moves + 30min + 30sec/move"]
[WhiteElo "2305"]
[BlackElo "1990"]

1. d4 {[%clk 01:30:56]} {[%emt 00:00:03]} d5 {[%clk 01:30:27]} {[%emt
00:00:35]} 2. c4 {[%clk 01:31:17]} {[%emt 00:00:08]} c6 {[%clk 01:30:50]}
{[%emt 00:00:07]} 3. Nf3 {[%clk 01:30:58]} {[%emt 00:00:49]} Nf6 {[%clk
01:30:56]} {[%emt 00:00:23]} 4. Nc3 {[%clk 01:31:10]} {[%emt 00:00:19]} e6
{[%clk 01:30:42]} {[%emt 00:00:44]} 5. g3 {[%clk 01:31:23]} {[%emt 00:00:17]}
dxc4 {[%clk 01:30:44]} {[%emt 00:00:29]} 6. Bg2 {[%clk 01:31:41]} {[%emt
00:00:11]} b5 {[%clk 01:30:29]} {[%emt 00:00:46]} 7. O-O {[%clk 01:30:13]}
{[%emt 00:01:58]} Bb7 {[%clk 01:29:06]} {[%emt 00:01:53]} 8. Ne5 {[%clk
01:30:18]} {[%emt 00:00:25]} a6 {[%clk 01:27:05]} {[%emt 00:02:32]} 9. Qc2
{[%clk 01:29:21]} {[%emt 00:01:26]} Nbd7 {[%clk 01:23:34]} {[%emt 00:04:01]} 10.
b3 {[%clk 01:25:18]} {[%emt 00:04:33]} cxb3 {[%clk 01:09:31]} {[%emt 00:14:33]}
11. axb3 {[%clk 01:24:53]} {[%emt 00:00:55]} Nd5 {[%clk 01:06:17]} {[%emt
00:03:44]} 12. Ne4 {[%clk 01:20:31]} {[%emt 00:04:51]} Nxe5 {[%clk 01:03:47]}
{[%emt 00:03:00]} 13. dxe5 {[%clk 01:20:51]} {[%emt 00:00:10]} Be7 {[%clk
00:58:33]} {[%emt 00:05:45]} 14. h4 {[%clk 01:16:56]} {[%emt 00:04:24]} h6
{[%clk 00:57:19]} {[%emt 00:01:44]} 15. Bb2 {[%clk 01:10:06]} {[%emt 00:07:21]}
O-O {[%clk 00:55:16]} {[%emt 00:02:30]} 16. Rfd1 {[%clk 00:58:52]} {[%emt
00:11:45]} c5 {[%clk 00:45:20]} {[%emt 00:10:27]} 17. Nxc5 {[%clk 00:47:02]}
{[%emt 00:12:20]} Rc8 {[%clk 00:37:42]} {[%emt 00:08:08]} 18. Bd4 {[%clk
00:42:24]} {[%emt 00:05:08]} Nb4 {[%clk 00:28:58]} {[%emt 00:09:14]} 19. Qc3
{[%clk 00:41:53]} {[%emt 00:01:01]} Nd5 {[%clk 00:24:33]} {[%emt 00:04:54]} 20.
Qc1 {[%clk 00:41:07]} {[%emt 00:01:17]} Qc7 {[%clk 00:23:34]} {[%emt 00:01:30]}
21. Nxb7 {[%clk 00:38:20]} {[%emt 00:03:17]} Qxb7 {[%clk 00:23:40]} {[%emt
00:00:24]} 22. Qd2 {[%clk 00:37:27]} {[%emt 00:01:23]} Rfd8 {[%clk 00:23:43]}
{[%emt 00:00:28]} 23. Qa5 {[%clk 00:37:20]} {[%emt 00:00:37]} Rc2 {[%clk
00:17:45]} {[%emt 00:06:27]} 24. Be4 {[%clk 00:25:54]} {[%emt 00:11:55]} Rxe2
{[%clk 00:15:29]} {[%emt 00:02:47]} 25. Bd3 {[%clk 00:25:21]} {[%emt 00:01:03]}
Nf4 {[%clk 00:02:15]} {[%emt 00:13:43]} 26. gxf4 {[%clk 00:25:33]} {[%emt
00:00:19]} Rxd4 {[%clk 00:02:37]} {[%emt 00:00:08]} 27. Bxe2 {[%clk 00:25:33]}
{[%emt 00:00:30]} Rxf4 {[%clk 00:02:59]} {[%emt 00:00:08]} 28. Qxa6 {[%clk
00:22:30]} {[%emt 00:03:32]} Qc7 {[%clk 00:03:11]} {[%emt 00:00:21]} 29. Qxb5
{[%clk 00:06:53]} {[%emt 00:16:05]} Bxh4 {[%clk 00:03:14]} {[%emt 00:00:27]} 30.
Ra8+ {[%clk 00:06:05]} {[%emt 00:01:18]} Kh7 {[%clk 00:03:30]} {[%emt
00:00:14]} 31. Ra4 {[%clk 00:06:00]} {[%emt 00:00:35]} Bxf2+ {[%clk 00:02:31]}
{[%emt 00:01:28]} 32. Kg2 {[%clk 00:06:02]} {[%emt 00:00:28]} Be3 {[%clk
00:01:22]} {[%emt 00:01:39]} 33. Qd3+ {[%clk 00:05:09]} {[%emt 00:01:23]} 1-0